[Event "13th Leiden Open 2019"]
[Site "Leiden"]
[Date "2019.07.14"]
[Round "3.5"]
[White "Stefansson, Hannes"]
[Black "Das, Arghyadip"]
[Result "1/2-1/2"]
[ECO "B81"]
[WhiteElo "2562"]
[BlackElo "2439"]
[Annotator "ChessBase"]
[PlyCount "87"]
[EventDate "2019.07.08"]
[EventType "swiss"]
[EventCountry "NED"]
[SourceTitle "playchess.com"]
[Source "ChessBase"]
[SourceQuality "1"]
[TimeControl "40/5400+30:1800+30"]

1. e4 {[%emt 0:00:00]} c5 {[%emt 0:00:19]} 2. Nf3 {[%emt 0:00:00]} d6 {[%emt 0:00:13]} 3. d4 {[%emt 0:00:06]} cxd4 {[%emt 0:00:10]} 4. Nxd4 {[%emt 0:00:11]} Nf6 {[%emt 0:00:04]} 5. Nc3 {[%emt 0:00:15]} a6 {[%emt 0:00:09]} 6. h3 {[%emt 0:00:38]} e6 {[%emt 0:09:02]} 7. g4 {[%emt 0:00:58]} b5 {[%emt 0:02:21]} 8. g5 {[%emt 0:05:20]} Nfd7 {[%emt 0:00:10]} 9. a3 {[%emt 0:01:55]} Bb7 {[%emt 0:00:45]} 10. h4 {[%emt 0:01:22]} Nc6 {[%emt 0:08:10]} 11. Be3 {[%emt 0:05:53]} Rc8 {[%emt 0:04:50]} 12. Nxc6 {[%emt 0:04:15]} Rxc6 {[%emt 0:06:09]} 13. Qd4 {[%emt 0:05:15]} Ne5 {[%emt 0:12:04]} 14. O-O-O {[%emt 0:01:19]} Qc8 {[%emt 0:14:38]} 15. f4 {[%emt 0:10:31]} Nc4 {[%emt 0:00:26]} 16. Bxc4 {[%emt 0:00:25]} Rxc4 {[%emt 0:00:15]} 17. Qd3 {[%emt 0:00:27]} a5 {[%emt 0:08:07]} 18. Bd4 {[%emt 0:09:25]} b4 {[%emt 0:01:49]} 19. axb4 {[%emt 0:19:28]} axb4 {[%emt 0:00:20]} 20. Nd5 {[%emt 0:02:50]} exd5 {[%emt 0:03:42]} 21. exd5 {[%emt 0:00:07]} Bxd5 {[%emt 0:02:20]} 22. Rhe1+ {[%emt 0:00:09]} Kd7 {[%emt 0:00:24]} 23. Bg1 {[%emt 0:14:02]} Qc6 {[%emt 0:04:17]} 24. Bd4 {[%emt 0:03:29]} Be7 {[%emt 0:07:17]} 25. b3 {[%emt 0:04:08]} Rxd4 {[%emt 0:02:22]} 26. Qxd4 {[%emt 0:00:05]} Be6 {[%emt 0:01:07]} 27. Qa7+ {[%emt 0:01:04]} Qc7 {[%emt 0:08:22]} 28. Qxc7+ {[%emt 0:00:09]} Kxc7 {[%emt 0:00:03]} 29. f5 {[%emt 0:00:14]} Kd7 {[%emt 0:00:10]} 30. fxe6+ {[%emt 0:00:15]} fxe6 {[%emt 0:00:01]} 31. Kd2 {[%emt 0:05:00]} h6 {[%emt 0:02:11]} 32. Ra1 {[%emt 0:01:02]} e5 {[%emt 0:00:03]} 33. Ra7+ {[%emt 0:00:31]} Ke6 {[%emt 0:00:02]} 34. gxh6 {[%emt 0:02:19]} Rxh6 {[%emt 0:00:59]} 35. Re4 {[%emt 0:00:17]} d5 {[%emt 0:00:19]} 36. Rg4 {[%emt 0:00:40]} g6 {[%emt 0:00:40]} 37. Rb7 {[%emt 0:01:22]} e4 {[%emt 0:01:18]} 38. Ke3 {[%emt 0:00:43]} Bxh4 {[%emt 0:02:28]} 39. Rxb4 {[%emt 0:01:04]} Bf6 {[%emt 0:00:02]} 40. Rb5 {[%emt 0:02:06]} Rh3+ {[%emt 0:00:15]} 41. Ke2 {[%emt 0:07:09]} Rh2+ {[%emt 0:00:48]} 42. Kd1 {[%emt 0:01:46]} Rh1+ {[%emt 0:01:30]} 43. Ke2 {[%emt 0:00:13]} Rh2+ {[%emt 0:00:36]} 44. Kd1 {[%emt 0:00:51]} 1/2-1/2

[Event "13th Leiden Open 2019"]
[Site "Leiden"]
[Date "2019.07.17"]
[Round "5.6"]
[White "Ivanov, Sergey"]
[Black "Chanda, Sandipan"]
[Result "0-1"]
[ECO "A40"]
[WhiteElo "2496"]
[BlackElo "2516"]
[Annotator "ChessBase"]
[PlyCount "56"]
[EventDate "2019.07.08"]
[EventType "swiss"]
[EventCountry "NED"]
[SourceTitle "playchess.com"]
[Source "ChessBase"]
[SourceQuality "1"]
[TimeControl "40/5400+30:1800+30"]

1. d4 {[%emt 0:00:00]} f5 {[%emt 0:00:00]} 2. c4 {[%emt 0:00:00]} Nf6 {[%emt 0:00:00]} 3. Nc3 {[%emt 0:00:00]} e6 {[%emt 0:00:02]} 4. Qc2 {[%emt 0:00:11]} b6 {[%emt 0:00:16]} 5. e3 {[%emt 0:00:26]} Bb7 {[%emt 0:00:10]} 6. Nge2 {[%emt 0:00:37]} Bd6 {[%emt 0:01:38]} 7. a3 {[%emt 0:03:38]} O-O {[%emt 0:01:10]} 8. b4 {[%emt 0:00:17]} c5 {[%emt 0:01:57]} 9. b5 {[%emt 0:02:33]} cxd4 {[%emt 0:17:30]} 10. Nxd4 {[%emt 0:06:47]} Qc7 {[%emt 0:08:01]} 11. Nf3 {[%emt 0:19:51]} Ng4 {[%emt 0:01:56]} 12. Bb2 {[%emt 0:08:13]} Nxh2 {[%emt 0:09:06]} 13. Nxh2 {[%emt 0:00:35]} Bxh2 {[%emt 0:00:06]} 14. O-O-O {[%emt 0:00:51]} Be5 {[%emt 0:00:11]} 15. f4 {[%emt 0:01:17]} Bf6 {[%emt 0:00:22]} 16. Rh2 {[%emt 0:01:40]} Qc5 {[%emt 0:07:08]} 17. Rh3 {[%emt 0:04:53]} a6 {[%emt 0:01:10]} 18. g4 {[%emt 0:05:10]} axb5 {[%emt 0:01:16]} 19. g5 {[%emt 0:03:12]} Be4 {[%emt 0:01:27]} 20. Bd3 {[%emt 0:04:02]} Bxd3 {[%emt 0:03:57]} 21. Rxd3 {[%emt 0:00:36]} Bxc3 {[%emt 0:00:21]} 22. Rxc3 {[%emt 0:03:12]} b4 {[%emt 0:01:00]} 23. axb4 {[%emt 0:02:01]} Qxb4 {[%emt 0:00:06]} 24. Qh2 {[%emt 0:03:12]} Ra2 {[%emt 0:01:14]} 25. e4 {[%emt 0:06:53]} Nc6 {[%emt 0:06:23]} 26. exf5 {[%emt 0:01:00]} Rfa8 {[%emt 0:04:17]} 27. Rxh7 {[%emt 0:03:41]} Ra1+ {[%emt 0:00:38]} 28. Kc2 {[%emt 0:00:10]} Qxb2+ {[%emt 0:00:16]} 0-1

[Event "13th Leiden Open 2019"]
[Site "Leiden"]
[Date "2019.07.17"]
[Round "5.7"]
[White "Ikonnikov, Vyacheslav"]
[Black "Van der Werf, Mark"]
[Result "1/2-1/2"]
[ECO "A70"]
[WhiteElo "2499"]
[BlackElo "2394"]
[Annotator "ChessBase"]
[PlyCount "61"]
[EventDate "2019.07.08"]
[EventType "swiss"]
[EventCountry "NED"]
[SourceTitle "playchess.com"]
[Source "ChessBase"]
[SourceQuality "1"]
[TimeControl "40/5400+30:1800+30"]

1. d4 {[%emt 0:00:00]} Nf6 {[%emt 0:00:00]} 2. Nf3 {[%emt 0:00:00]} e6 {[%emt 0:00:00]} 3. c4 {[%emt 0:00:03]} c5 {[%emt 0:00:00]} 4. d5 {[%emt 0:00:30]} exd5 {[%emt 0:00:00]} 5. cxd5 {[%emt 0:00:04]} d6 {[%emt 0:00:00]} 6. Nc3 {[%emt 0:00:17]} g6 {[%emt 0:00:05]} 7. e4 {[%emt 0:00:49]} a6 {[%emt 0:00:09]} 8. h3 {[%emt 0:00:40]} b5 {[%emt 0:00:15]} 9. Bd3 {[%emt 0:00:34]} Bg7 {[%emt 0:00:14]} 10. O-O {[%emt 0:00:42]} O-O {[%emt 0:00:09]} 11. Re1 {[%emt 0:03:26]} Re8 {[%emt 0:01:00]} 12. Bf4 {[%emt 0:02:11]} Bb7 {[%emt 0:03:22]} 13. a3 {[%emt 0:05:21]} Qb6 {[%emt 0:00:15]} 14. Qd2 {[%emt 0:02:07]} Nbd7 {[%emt 0:00:07]} 15. b4 {[%emt 0:00:53]} Rac8 {[%emt 0:00:28]} 16. Rac1 {[%emt 0:00:07]} Re7 {[%emt 0:00:29]} 17. Be3 {[%emt 0:19:22]} Qd8 {[%emt 0:00:18]} 18. Bh6 {[%emt 0:03:20]} Bh8 {[%emt 0:01:27]} 19. Bg5 {[%emt 0:01:29]} Re8 {[%emt 0:05:33]} 20. Bb1 {[%emt 0:20:01]} Bg7 {[%emt 0:04:12]} 21. Ne2 {[%emt 0:06:52]} Qe7 {[%emt 0:12:42]} 22. Ng3 {[%emt 0:00:26]} Qf8 {[%emt 0:00:10]} 23. Bf4 {[%emt 0:08:16]} Nb6 {[%emt 0:09:26]} 24. Ba2 {[%emt 0:01:13]} Nfd7 {[%emt 0:01:02]} 25. h4 {[%emt 0:01:01]} Na4 {[%emt 0:07:15]} 26. bxc5 {[%emt 0:02:59]} Rxc5 {[%emt 0:03:45]} 27. Rxc5 {[%emt 0:02:05]} Naxc5 {[%emt 0:02:16]} 28. h5 {[%emt 0:00:36]} Qe7 {[%emt 0:19:16]} 29. Bg5 {[%emt 0:02:30]} Bf6 {[%emt 0:03:26]} 30. Bxf6 {[%emt 0:01:08]} Qxf6 {[%emt 0:00:12]} 31. Re3 {[%emt 0:07:57]} 1/2-1/2

[Event "13th Leiden Open 2019"]
[Site "Leiden"]
[Date "2019.07.17"]
[Round "5.8"]
[White "Suvrajit, Saha"]
[Black "Beerdsen, Thomas"]
[Result "1/2-1/2"]
[ECO "E11"]
[WhiteElo "2189"]
[BlackElo "2497"]
[Annotator "ChessBase"]
[PlyCount "82"]
[EventDate "2019.07.08"]
[EventType "swiss"]
[EventCountry "NED"]
[SourceTitle "playchess.com"]
[Source "ChessBase"]
[SourceQuality "1"]
[TimeControl "40/5400+30:1800+30"]

1. d4 {[%emt 0:00:00]} e6 {[%emt 0:01:42]} 2. c4 {[%emt 0:00:31]} Nf6 {[%emt 0:00:44]} 3. Nf3 {[%emt 0:00:09]} Bb4+ {[%emt 0:01:22]} 4. Bd2 {[%emt 0:00:07]} c5 {[%emt 0:00:22]} 5. dxc5 {[%emt 0:02:47]} Bxc5 {[%emt 0:00:09]} 6. Nc3 {[%emt 0:00:11]} O-O {[%emt 0:01:31]} 7. e3 {[%emt 0:00:11]} Nc6 {[%emt 0:03:45]} 8. a3 {[%emt 0:01:01]} d5 {[%emt 0:03:46]} 9. cxd5 {[%emt 0:06:25]} exd5 {[%emt 0:00:08]} 10. Be2 {[%emt 0:00:06]} Bg4 {[%emt 0:02:51]} 11. O-O {[%emt 0:00:35]} Qe7 {[%emt 0:02:11]} 12. Nd4 {[%emt 0:09:00]} Bxe2 {[%emt 0:02:34]} 13. Nxc6 {[%emt 0:03:15]} bxc6 {[%emt 0:01:30]} 14. Qxe2 {[%emt 0:03:02]} Bd6 {[%emt 0:05:17]} 15. Rfd1 {[%emt 0:03:59]} Rfb8 {[%emt 0:05:13]} 16. Be1 {[%emt 0:00:58]} Rb3 {[%emt 0:00:34]} 17. Rac1 {[%emt 0:01:30]} Rab8 {[%emt 0:00:34]} 18. Rc2 {[%emt 0:00:08]} h5 {[%emt 0:01:39]} 19. f3 {[%emt 0:08:32]} Nd7 {[%emt 0:07:44]} 20. Bf2 {[%emt 0:04:23]} Be5 {[%emt 0:02:35]} 21. Na4 {[%emt 0:04:10]} Qf6 {[%emt 0:19:32]} 22. Qa6 {[%emt 0:10:18]} Bxb2 {[%emt 0:06:40]} 23. Rxc6 {[%emt 0:00:26]} Qd8 {[%emt 0:01:40]} 24. Nxb2 {[%emt 0:05:28]} Rxb2 {[%emt 0:00:07]} 25. Bg3 {[%emt 0:06:13]} Rb1 {[%emt 0:08:08]} 26. Qf1 {[%emt 0:06:34]} Rxd1 {[%emt 0:01:53]} 27. Qxd1 {[%emt 0:00:02]} Rb6 {[%emt 0:02:47]} 28. Rc1 {[%emt 0:09:07]} Qg5 {[%emt 0:02:59]} 29. Bf4 {[%emt 0:03:07]} Qf5 {[%emt 0:00:32]} 30. Rc8+ {[%emt 0:02:54]} Nf8 {[%emt 0:01:00]} 31. Rb8 {[%emt 0:05:17]} Rxb8 {[%emt 0:01:34]} 32. Bxb8 {[%emt 0:00:02]} a6 {[%emt 0:00:33]} 33. Ba7 {[%emt 0:02:03]} Qd7 {[%emt 0:02:16]} 34. Bd4 {[%emt 0:00:18]} Ne6 {[%emt 0:00:15]} 35. Qc2 {[%emt 0:01:19]} Qb5 {[%emt 0:00:49]} 36. Qc8+ {[%emt 0:00:39]} Kh7 {[%emt 0:00:07]} 37. Qc2+ {[%emt 0:00:11]} Kh6 {[%emt 0:01:51]} 38. h4 {[%emt 0:01:26]} Qa5 {[%emt 0:01:33]} 39. Qc3 {[%emt 0:00:52]} Qa4 {[%emt 0:02:53]} 40. Kf2 {[%emt 0:01:11]} a5 {[%emt 0:02:14]} 41. Qd3 {[%emt 0:03:42]} Nxd4 {[%emt 0:03:47]} 1/2-1/2

[Event "13th Leiden Open 2019"]
[Site "Leiden"]
[Date "2019.07.17"]
[Round "5.9"]
[White "Lai, Hing Ting"]
[Black "Roorda, Thijs"]
[Result "1/2-1/2"]
[ECO "A04"]
[WhiteElo "2460"]
[BlackElo "2108"]
[Annotator "ChessBase"]
[PlyCount "90"]
[EventDate "2019.07.08"]
[EventType "swiss"]
[EventCountry "NED"]
[SourceTitle "playchess.com"]
[Source "ChessBase"]
[SourceQuality "1"]
[TimeControl "40/5400+30:1800+30"]

1. Nf3 {[%emt 0:00:00]} f5 {[%emt 0:00:00]} 2. d3 {[%emt 0:00:00]} d6 {[%emt 0:03:05]} 3. e4 {[%emt 0:00:00]} e5 {[%emt 0:00:19]} 4. Nc3 {[%emt 0:00:22]} Nf6 {[%emt 0:00:24]} 5. exf5 {[%emt 0:00:14]} Bxf5 {[%emt 0:00:36]} 6. d4 {[%emt 0:00:05]} e4 {[%emt 0:09:18]} 7. Nh4 {[%emt 0:00:07]} Qd7 {[%emt 0:01:31]} 8. Bg5 {[%emt 0:14:46]} Be7 {[%emt 0:02:27]} 9. Bxf6 {[%emt 0:04:47]} Bxf6 {[%emt 0:01:18]} 10. Nxf5 {[%emt 0:00:06]} Qxf5 {[%emt 0:00:05]} 11. g4 {[%emt 0:00:42]} Qa5 {[%emt 0:04:47]} 12. g5 {[%emt 0:01:56]} Bxg5 {[%emt 0:05:55]} 13. Bb5+ {[%emt 0:04:04]} Kd8 {[%emt 0:03:57]} 14. Qg4 {[%emt 0:06:52]} Bf6 {[%emt 0:02:18]} 15. Qxe4 {[%emt 0:00:42]} a6 {[%emt 0:03:08]} 16. Ba4 {[%emt 0:07:11]} c6 {[%emt 0:06:03]} 17. O-O-O {[%emt 0:00:10]} Nd7 {[%emt 0:01:48]} 18. Qe6 {[%emt 0:05:34]} Kc7 {[%emt 0:15:01]} 19. h4 {[%emt 0:00:59]} Rae8 {[%emt 0:03:02]} 20. Qg4 {[%emt 0:00:05]} h5 {[%emt 0:02:59]} 21. Qg6 {[%emt 0:02:39]} Re7 {[%emt 0:03:54]} 22. Kb1 {[%emt 0:01:24]} Nf8 {[%emt 0:01:10]} 23. Qg3 {[%emt 0:04:27]} Qf5 {[%emt 0:05:21]} 24. Bb3 {[%emt 0:01:59]} Ng6 {[%emt 0:02:20]} 25. f3 {[%emt 0:03:37]} Re3 {[%emt 0:01:26]} 26. Rhg1 {[%emt 0:05:06]} Nxh4 {[%emt 0:06:24]} 27. Ne4 {[%emt 0:00:16]} Rd8 {[%emt 0:00:33]} 28. Nxf6 {[%emt 0:00:40]} Qxf6 {[%emt 0:00:06]} 29. Qxg7+ {[%emt 0:00:20]} Qxg7 {[%emt 0:00:25]} 30. Rxg7+ {[%emt 0:00:02]} Rd7 {[%emt 0:00:39]} 31. Rxd7+ {[%emt 0:02:37]} Kxd7 {[%emt 0:00:05]} 32. Bf7 {[%emt 0:00:05]} Nf5 {[%emt 0:06:40]} 33. Bxh5 {[%emt 0:00:10]} Nxd4 {[%emt 0:00:05]} 34. Rg1 {[%emt 0:03:54]} Nxf3 {[%emt 0:01:11]} 35. Bxf3 {[%emt 0:00:06]} Rxf3 {[%emt 0:00:06]} 36. Rg7+ {[%emt 0:00:11]} Ke6 {[%emt 0:02:05]} 37. b3 {[%emt 0:00:13]} Rf7 {[%emt 0:00:06]} 38. Rg8 {[%emt 0:00:14]} d5 {[%emt 0:01:30]} 39. Kb2 {[%emt 0:00:25]} Kd6 {[%emt 0:00:21]} 40. Rg6+ {[%emt 0:02:27]} Kc5 {[%emt 0:00:22]} 41. Rg5 {[%emt 0:30:10]} a5 {[%emt 0:32:19]} 42. a4 {[%emt 0:03:27]} Re7 {[%emt 0:03:47]} 43. Rh5 {[%emt 0:01:37]} b5 {[%emt 0:00:37]} 44. axb5 {[%emt 0:00:40]} cxb5 {[%emt 0:00:50]} 45. Rh8 {[%emt 0:00:14]} Rd7 {[%emt 0:00:47]} 1/2-1/2

[Event "13th Leiden Open 2019"]
[Site "Leiden"]
[Date "2019.07.17"]
[Round "5.10"]
[White "De Lange, Steyn"]
[Black "Bueno, Mark"]
[Result "1/2-1/2"]
[ECO "A13"]
[WhiteElo "1914"]
[BlackElo "1976"]
[Annotator "NA"]
[PlyCount "119"]
[EventDate "2019.07.08"]
[EventType "swiss"]
[EventCountry "NED"]
[SourceTitle "playchess.com"]
[Source "ChessBase"]
[SourceQuality "1"]
[TimeControl "40/5400+30:1800+30"]

1. c4 {[%emt 0:00:00]} Nf6 {[%emt 0:00:00]} 2. Nf3 {[%emt 0:00:00]} e6 {[%emt 0:00:00]} 3. Nc3 {[%emt 0:00:27]} d5 {[%emt 0:00:00]} 4. cxd5 {[%emt 0:00:09]} exd5 {[%emt 0:00:01]} 5. g3 {[%emt 0:00:09]} Be7 {[%emt 0:01:38]} 6. Bg2 {[%emt 0:00:37]} O-O {[%emt 0:00:13]} 7. d3 {[%emt 0:00:26]} c6 {[%emt 0:07:13]} 8. O-O {[%emt 0:00:30]} Re8 {[%emt 0:01:04]} 9. Qc2 {[%emt 0:02:44]} Na6 {[%emt 0:01:34]} 10. a3 {[%emt 0:07:52]} Nc7 {[%emt 0:09:02]} 11. e4 {[%emt 0:01:21]} Bd6 {[%emt 0:15:11]} 12. Be3 {[%emt 0:17:10]} Qe7 {[%emt 0:21:06]} 13. Rfe1 {[%emt 0:11:08]} dxe4 {[%emt 0:02:01]} 14. dxe4 {[%emt 0:05:15]} Ng4 {[%emt 0:09:36]} 15. b4 {[%emt 0:21:21]} Nxe3 {[%emt 0:05:49]} 16. Rxe3 {[%emt 0:03:09]} Ne6 {[%emt 0:08:52]} 17. Rd1 {[%emt 0:00:53]} Bc7 {[%emt 0:00:34]} 18. Red3 {[%emt 0:02:25]} a5 {[%emt 0:00:43]} 19. b5 {[%emt 0:01:24]} Nc5 {[%emt 0:01:06]} 20. R3d2 {[%emt 0:01:23]} Bg4 {[%emt 0:00:45]} 21. bxc6 {[%emt 0:02:20]} bxc6 {[%emt 0:00:03]} 22. h3 {[%emt 0:02:11]} Bxf3 {[%emt 0:00:12]} 23. Bxf3 {[%emt 0:00:51]} Be5 {[%emt 0:00:26]} 24. Na4 {[%emt 0:01:04]} Nxa4 {[%emt 0:06:03]} 25. Qxa4 {[%emt 0:00:33]} h6 {[%emt 0:04:10]} 26. Kg2 {[%emt 0:05:39]} c5 {[%emt 0:02:00]} 27. Rd7 {[%emt 0:00:55]} Qf6 {[%emt 0:00:25]} 28. Qc4 {[%emt 0:00:44]} Rac8 {[%emt 0:02:41]} 29. R1d5 {[%emt 0:01:17]} Bd4 {[%emt 0:00:12]} 30. R5d6 {[%emt 0:00:13]} Qe5 {[%emt 0:01:33]} 31. Qxf7+ {[%emt 0:01:14]} Kh7 {[%emt 0:00:03]} 32. Rd5 {[%emt 0:06:00]} Qe6 {[%emt 0:00:26]} 33. Qxe6 {[%emt 0:00:51]} Rxe6 {[%emt 0:00:01]} 34. Bg4 {[%emt 0:00:24]} Rf6 {[%emt 0:00:29]} 35. Rf5 {[%emt 0:01:08]} Rb8 {[%emt 0:00:37]} 36. Rxf6 {[%emt 0:00:14]} Bxf6 {[%emt 0:00:07]} 37. Bf5+ {[%emt 0:01:01]} Kg8 {[%emt 0:00:05]} 38. Ra7 {[%emt 0:00:51]} Bc3 {[%emt 0:01:15]} 39. Rc7 {[%emt 0:00:41]} Bd4 {[%emt 0:00:15]} 40. Rc8+ {[%emt 0:00:29]} Rxc8 {[%emt 0:00:27]} 41. Bxc8 {[%emt 0:30:04]} a4 {[%emt 0:30:21]} 42. Bd7 {[%emt 0:00:51]} Bb2 {[%emt 0:00:06]} 43. Bxa4 {[%emt 0:00:06]} Bxa3 {[%emt 0:00:02]} 44. Bb3+ {[%emt 0:01:18]} Kf8 {[%emt 0:00:05]} 45. Kf3 {[%emt 0:00:29]} Ke7 {[%emt 0:00:25]} 46. Kf4 {[%emt 0:00:25]} Bb2 {[%emt 0:01:14]} 47. e5 {[%emt 0:00:00]} Bd4 {[%emt 0:00:00]} 48. f3 {[%emt 0:00:00]} Bf2 {[%emt 0:00:00]} 49. g4 {[%emt 0:00:00]} Bh4 {[%emt 0:00:00]} 50. Kf5 {[%emt 0:00:00]} Bg3 {[%emt 0:00:00]} 51. f4 {[%emt 0:00:00]} Bh2 {[%emt 0:00:00]} 52. e6 {[%emt 0:00:00]} Bg1 {[%emt 0:00:00]} 53. Kg6 {[%emt 0:00:00]} Be3 {[%emt 0:00:00]} 54. Kxg7 {[%emt 0:00:00]} Bxf4 {[%emt 0:00:00]} 55. h4 {[%emt 0:00:00]} Bg3 {[%emt 0:00:00]} 56. Kxh6 {[%emt 0:00:00]} Bxh4 {[%emt 0:00:00]} 57. g5 {[%emt 0:00:00]} Kf8 {[%emt 0:00:00]} 58. Kg6 {[%emt 0:00:00]} Bf2 {[%emt 0:00:00]} 59. Kf5 {[%emt 0:00:00]} Bd4 {[%emt 0:00:00]} 60. Ke4 {[%emt 0:00:00]} 1/2-1/2

[Event "13th Leiden Open 2019"]
[Site "Leiden"]
[Date "2019.07.18"]
[Round "6.10"]
[White "Bueno, Mark"]
[Black "Van der Werf, Joel"]
[Result "1-0"]
[ECO "B33"]
[WhiteElo "1976"]
[BlackElo "1878"]
[Annotator "NA RC"]
[PlyCount "103"]
[EventDate "2019.07.08"]
[EventType "swiss"]
[EventCountry "NED"]
[SourceTitle "playchess.com"]
[Source "ChessBase"]
[SourceQuality "1"]
[TimeControl "40/5400+30:1800+30"]

1. e4 {[%emt 0:00:00]} c5 {[%emt 0:00:00]} 2. Nf3 {[%emt 0:00:00]} Nc6 {[%emt 0:00:00]} 3. d4 {[%emt 0:00:09]} cxd4 {[%emt 0:00:00]} 4. Nxd4 {[%emt 0:00:07]} Nf6 {[%emt 0:00:00]} 5. Nc3 {[%emt 0:00:05]} e5 {[%emt 0:00:00]} 6. Ndb5 {[%emt 0:00:42]} d6 {[%emt 0:00:02]} 7. Bg5 {[%emt 0:00:58]} a6 {[%emt 0:00:04]} 8. Na3 {[%emt 0:00:20]} b5 {[%emt 0:00:04]} 9. Nd5 {[%emt 0:00:05]} Be7 {[%emt 0:00:05]} 10. Bxf6 {[%emt 0:02:34]} Bxf6 {[%emt 0:00:05]} 11. c3 {[%emt 0:00:07]} O-O {[%emt 0:00:30]} 12. Be2 {[%emt 0:00:05]} Bg5 {[%emt 0:01:47]} 13. Bg4 {[%emt 0:06:04] B33: Sicilian: Pelikan and Sveshnikov Variations} (13. Nc2 Ne7 14. Nxe7+ Qxe7 15. O-O Bb7 16. Qd3 d5 17. exd5 Rad8 18. c4 bxc4 19. Qa3 Qc7 20. Rfd1 Bxd5 21. Qxa6 Ra8 {1-0 (72) Tukhaev,A (2527)-Carlsen,M (2835) St Petersburg 2018}) 13... Be6 {[%emt 0:06:14]} 14. O-O {[%emt 0:01:28]} Rb8 {[%emt 0:08:36]} 15. Nc2 {[%emt 0:00:41]} Qd7 {[%emt 0:05:56]} 16. Bf3 {[%emt 0:09:59]} a5 {[%emt 0:12:52]} 17. Qd3 {[%emt 0:08:06]} b4 {[%emt 0:05:59]} 18. c4 {[%emt 0:04:09]} Ne7 $146 {[%emt 0:16:48]} ({Predecessor:} 18... Qa7 19. b3 Qc5 20. Nc7 Qb6 21. Nb5 Na7 22. Nxa7 Qxa7 {½-½ (52) Marek,M (2398)-Kernazhitsky,L (2265) Tatranske Zruby 2015}) 19. Nxe7+ {[%emt 0:03:00]} Bxe7 {[%emt 0:02:06]} 20. Ne3 {[%emt 0:03:33]} Rfc8 {[%emt 0:01:08]} 21. b3 {[%emt 0:01:48]} Rc5 {[%emt 0:04:41]} 22. Rfd1 {[%emt 0:10:40]} g6 {[%emt 0:01:48]} 23. Rd2 {[%emt 0:11:18]} Rbc8 {[%emt 0:05:54]} 24. Rad1 {[%emt 0:00:40]} Kg7 $11 {[%emt 0:01:15]} 25. Qe2 {[%emt 0:07:31]} R8c7 {[%emt 0:03:53]} 26. g3 {[%emt 0:07:02]} Ra7 {[%emt 0:02:18]} 27. Bg2 {[%emt 0:00:49]} Qc8 {[%emt 0:01:43]} 28. Rf1 {[%emt 0:00:51]} f6 {[%emt 0:01:36]} 29. Qd1 {[%emt 0:05:08]} Bf8 {[%emt 0:01:26]} 30. f4 {[%emt 0:03:48]} Bf7 {[%emt 0:01:39]} 31. fxe5 {[%emt 0:01:17]} fxe5 {[%emt 0:01:58]} 32. Rdf2 {[%emt 0:00:36]} Rcc7 {[%emt 0:06:48]} 33. Nd5 {[%emt 0:00:41]} Rcb7 {[%emt 0:00:15]} 34. h4 {[%emt 0:01:53]} Qc5 {[%emt 0:03:09]} 35. Qf3 {[%emt 0:02:13]} Rb8 {[%emt 0:00:44]} 36. h5 {[%emt 0:05:45]} gxh5 {[%emt 0:01:36]} 37. Nf6 {[%emt 0:01:43]} Kh8 {[%emt 0:03:10]} 38. Nxh5 {[%emt 0:00:32]} Bxh5 {[%emt 0:00:05]} 39. Qxh5 {[%emt 0:00:04]} Bg7 {[%emt 0:00:12]} 40. Kh2 {[%emt 0:00:12]} Qc8 {[%emt 0:00:41]} 41. Bh3 {[%emt 0:31:02]} Qe8 {[%emt 0:05:00]} 42. Qd1 {[%emt 0:00:00]} Rd8 {[%emt 0:03:19]} 43. Bf5 {[%emt 0:00:00]} Bf6 {[%emt 0:08:46]} 44. Kg2 {[%emt 0:00:00]} h6 {[%emt 0:01:30]} 45. Bd7 {[%emt 0:00:00]} Qxd7 {[%emt 0:03:46]} 46. Rxf6 {[%emt 0:00:00]} Qh7 {[%emt 0:00:29]} 47. R1f5 {[%emt 0:00:00]} Rg7 {[%emt 0:08:06]} 48. Qh5 {[%emt 0:00:00]} Rdg8 {[%emt 0:02:41]} 49. Rxh6 {[%emt 0:00:00]} Rxg3+ {[%emt 0:00:05]} 50. Kf2 {[%emt 0:00:00]} Rg2+ {[%emt 0:00:23]} 51. Ke1 {[%emt 0:00:00]} Rg1+ {[%emt 0:00:40]} 52. Rf1 {[%emt 0:00:00]} 1-0